fUST/lending_fUST_20251206
["ID","MTS","AMOUNT","RATE_DAILY","PERIOD"]
[396494553,1765003843019,-1170.46,0.00010958,2]
[396494554,1765003843028,-500.0,0.00010958,2]
[396494555,1765003843037,-500.0,0.00010958,2]
[396494557,1765003843046,-500.0,0.00010958,2]
[396494559,1765003843056,-500.0,0.00010958,2]
[396494561,1765003843065,-500.0,0.00010958,2]
[396494562,1765003843075,-500.0,0.00010958,2]
[396494563,1765003843084,-500.0,0.00010958,2]
[396494564,1765003843093,-585.14,0.00010958,2]
[396494565,1765003843103,-3635.3,0.00010958,2]
[396494566,1765003843114,-500.0,0.00010958,2]
[396494567,1765003843124,-500.0,0.00010958,2]
[396494568,1765003843134,-500.0,0.00010958,2]
[396494569,1765003843144,-500.0,0.00010958,2]
[396494570,1765003843157,-500.0,0.00010958,2]
[396494571,1765003843167,-512.5,0.00010958,2]
[396494572,1765003843176,-500.0,0.00010958,2]
[396494573,1765003843187,-500.0,0.00010958,2]
[396494574,1765003843197,-765.43,0.00010958,2]
[396494575,1765003843207,-500.0,0.00010958,2]
[396494576,1765003843216,-500.0,0.00010958,2]
[396494577,1765003843225,-500.0,0.00010958,2]
[396494578,1765003843235,-500.0,0.00010958,2]
[396494579,1765003843246,-500.0,0.00010958,2]
[396494581,1765003843255,-1597.59,0.00010958,2]
[396494582,1765003843265,-500.0,0.00010958,2]
[396494583,1765003843275,-500.0,0.00010958,2]
[396494584,1765003843284,-562.1,0.00010958,2]
[396494586,1765003843294,-500.0,0.00010958,2]
[396494588,1765003843303,-868.68,0.00010958,2]
[396494589,1765003843312,-500.0,0.00010958,2]
[396494590,1765003843322,-500.0,0.00010958,2]
[396494592,1765003843331,-500.0,0.00010958,2]
[396494593,1765003843341,-500.0,0.00010958,2]
[396494594,1765003843350,-500.0,0.00010958,2]
[396494595,1765003843359,-500.0,0.00010958,2]
[396494596,1765003843369,-686.99,0.00010958,2]
[396494597,1765003843378,-656.07,0.00010958,2]
[396494598,1765003843387,-500.0,0.00010958,2]
[396494599,1765003843396,-500.0,0.00010958,2]
[396494600,1765003843405,-500.0,0.00010958,2]
[396494601,1765003843414,-500.0,0.00010958,2]
[396494602,1765003843423,-1665.76,0.00010958,2]
[396494603,1765003843432,-500.0,0.00010958,2]
[396494604,1765003843442,-500.0,0.00010958,2]
[396494605,1765003843451,-500.0,0.00010958,2]
[396494606,1765003843460,-500.0,0.00010958,2]
[396494607,1765003843469,-500.0,0.00010958,2]
[396494608,1765003843478,-738.0,0.00010958,2]
[396494609,1765003843487,-500.0,0.00010958,2]
[396494610,1765003843496,-500.0,0.00010958,2]
[396494611,1765003843505,-772.45,0.00010958,2]
[396494612,1765003843515,-500.0,0.00010958,2]
[396494614,1765003843524,-854.0,0.00010958,2]
[396494616,1765003843533,-2247.46,0.00010958,2]
[396494618,1765003843543,-500.0,0.00010958,2]
[396494619,1765003843552,-500.0,0.00010958,2]
[396494622,1765003843561,-1134.81,0.00010958,2]
[396494623,1765003843571,-500.0,0.00010958,2]
[396494624,1765003843580,-500.0,0.00010958,2]
[396494625,1765003843590,-500.0,0.00010958,2]
[396494626,1765003843599,-1103.87,0.00010958,2]
[396494627,1765003843608,-500.0,0.00010958,2]
[396494628,1765003843617,-506.27482242,0.00010958,2]
[396494629,1765003843626,-500.0,0.00010958,2]
[396494630,1765003843635,-500.0,0.00010958,2]
[396494632,1765003843644,-500.0,0.00010958,2]
[396494634,1765003843654,-500.0,0.00010958,2]
[396494636,1765003843664,-500.0,0.00010958,2]
[396494638,1765003843673,-500.0,0.00010958,2]
[396494640,1765003843683,-500.0,0.00010958,2]
[396494642,1765003843692,-500.0,0.00010958,2]
[396494644,1765003843702,-1129.41,0.00010958,2]
[396494646,1765003843711,-500.0,0.00010958,2]
[396494648,1765003843720,-500.0,0.00010958,2]
[396494650,1765003843729,-500.0,0.00010958,2]
[396494652,1765003843738,-500.0,0.00010958,2]
[396494654,1765003843747,-500.0,0.00010958,2]
[396494656,1765003843757,-500.0,0.00010958,2]
[396494658,1765003843767,-500.0,0.00010958,2]
[396494660,1765003843776,-500.0,0.00010958,2]
[396494662,1765003843786,-1524.02,0.00010958,2]
[396494664,1765003843796,-500.0,0.00010958,2]
[396494667,1765003843807,-500.0,0.00010958,2]
[396494669,1765003843816,-1416.96,0.00010958,2]
[396494671,1765003843826,-500.0,0.00010958,2]
[396494672,1765003843835,-500.0,0.00010958,2]
[396494675,1765003843844,-500.0,0.00010958,2]
[396494677,1765003843854,-500.0,0.00010958,2]
[396494679,1765003843863,-500.0,0.00010958,2]
[396494680,1765003843872,-500.0,0.00010958,2]
[396494683,1765003843882,-500.0,0.00010958,2]
[396494684,1765003843891,-500.0,0.00010958,2]
[396494686,1765003843901,-2506.65,0.00010958,2]
[396494688,1765003843911,-500.0,0.00010958,2]
[396494691,1765003843922,-6590.26,0.00010958,2]
[396494693,1765003843932,-572.87,0.00010958,2]
[396494710,1765003844077,-500.0,0.00010958,2]
[396494712,1765003844086,-581.55,0.00010958,2]
[396494715,1765003844095,-2092.68,0.00010958,2]
[396494716,1765003844104,-500.0,0.00010958,2]
[396494719,1765003844115,-500.0,0.00010958,2]
[396494720,1765003844126,-500.0,0.00010958,2]
[396494722,1765003844135,-6482.48,0.00010958,2]
[396494725,1765003844145,-500.0,0.00010958,2]
[396494726,1765003844160,-500.0,0.00010958,2]
[396494728,1765003844169,-500.0,0.00010958,2]
[396494730,1765003844178,-500.0,0.00010958,2]
[396494732,1765003844189,-520.71521636,0.00010958,2]
[396494735,1765003844200,-500.0,0.00010958,2]
[396494736,1765003844211,-500.0,0.00010958,2]
[396494739,1765003844222,-500.0,0.00010958,2]
[396494740,1765003844234,-500.0,0.00010958,2]
[396494742,1765003844243,-357.50074056,0.00010958,2]
[396494744,1765003844252,-500.0,0.00010958,2]
[396494746,1765003844262,-500.0,0.00010958,2]
[396494748,1765003844271,-500.0,0.00010958,2]
[396494750,1765003844280,-500.0,0.00010958,2]
[396494752,1765003844289,-517.62499619,0.00010958,2]
[396494755,1765003844298,-160.08777059,0.00010958,2]
[396494757,1765003844307,-2909.13,0.00010958,2]
[396494759,1765003844317,-1479.09,0.00010958,2]
[396494760,1765003844326,-500.0,0.00010958,2]
[396494762,1765003844336,-5915.39,0.00010958,2]
[396494765,1765003844347,-3561.49,0.00010958,2]
[396494767,1765003844356,-500.0,0.00010958,2]
[396494768,1765003844365,-1348.4,0.00010958,2]
[396494770,1765003844375,-1051.1,0.00010958,2]
[396494773,1765003844384,-500.0,0.00010958,2]
[396494775,1765003844393,-634.28,0.00010958,2]
[396494776,1765003844403,-500.0,0.00010958,2]
[396494778,1765003844413,-500.0,0.00010958,2]
[396494780,1765003844423,-500.0,0.00010958,2]
[396494783,1765003844433,-500.0,0.00010958,2]
[396494784,1765003844443,-500.0,0.00010958,2]
[396494786,1765003844452,-2188.35,0.00010958,2]
[396494788,1765003844462,-1310.08,0.00010958,2]
[396494790,1765003844471,-500.0,0.00010958,2]
[396494792,1765003844481,-787.09,0.00010958,2]
[396494794,1765003844490,-649.06,0.00010958,2]
[396494796,1765003844499,-718.94,0.00010958,2]
[396494798,1765003844509,-500.0,0.00010958,2]
[396494800,1765003844518,-500.0,0.00010958,2]
[396494802,1765003844527,-500.0,0.00010958,2]
[396494804,1765003844537,-958.65,0.00010958,2]
[396494806,1765003844546,-500.0,0.00010958,2]
[396494808,1765003844555,-500.0,0.00010958,2]
[396494810,1765003844564,-1154.81,0.00010958,2]
[396494812,1765003844574,-500.0,0.00010958,2]
[396494814,1765003844583,-500.0,0.00010958,2]
[396494816,1765003844597,-500.0,0.00010958,2]
[396494818,1765003844607,-534.55,0.00010958,2]
[396494820,1765003844616,-500.0,0.00010958,2]
[396494823,1765003844627,-500.0,0.00010958,2]
[396494824,1765003844637,-500.0,0.00010958,2]
[396494826,1765003844647,-500.0,0.00010958,2]
[396494828,1765003844657,-2522.78,0.00010958,2]
[396494830,1765003844668,-2326.51,0.00010958,2]
[396494831,1765003844678,-500.0,0.00010958,2]
[396494832,1765003844688,-1024.84,0.00010958,2]
[396494833,1765003844699,-500.0,0.00010958,2]
[396494834,1765003844709,-500.0,0.00010958,2]
[396494835,1765003844719,-500.0,0.00010958,2]
[396494836,1765003844728,-1790.84,0.00010958,2]
[396494837,1765003844737,-500.0,0.00010958,2]
[396494838,1765003844747,-468.44636044,0.00010958,2]
[396494839,1765003844756,-500.0,0.00010958,2]
[396494840,1765003844765,-690.81,0.00010958,2]
[396494841,1765003844774,-500.18503849,0.00010958,2]
[396494842,1765003844783,-2173.3,0.00010958,2]
[396494843,1765003844792,-500.0,0.00010958,2]
[396494844,1765003844801,-500.0,0.00010958,2]
[396494845,1765003844811,-500.0,0.00010958,2]
[396494846,1765003844821,-582.72,0.00010958,2]
[396494847,1765003844830,-1157.61,0.00010958,2]
[396494848,1765003844839,-500.0,0.00010958,2]
[396494849,1765003844849,-1041.49,0.00010958,2]
[396494850,1765003844858,-10309.6,0.00010958,2]
[396494851,1765003844868,-500.0,0.00010958,2]
[396494852,1765003844877,-500.0,0.00010958,2]
[396494853,1765003844888,-500.0,0.00010958,2]
[396494854,1765003844897,-7566.55,0.00010958,2]
[396494855,1765003844907,-500.0,0.00010958,2]
[396494856,1765003844916,-3644.94,0.00010958,2]
[396494857,1765003844925,-865.9,0.00010958,2]
[396494858,1765003844934,-500.0,0.00010958,2]
[396494859,1765003844943,-2800.46,0.00010958,2]
[396494860,1765003844952,-705.4,0.00010958,2]
[396494861,1765003844961,-500.0,0.00010958,2]
[396494862,1765003844970,-500.0,0.00010958,2]
[396494863,1765003844980,-500.0,0.00010958,2]
[396494864,1765003844989,-500.0,0.00010958,2]
[396494865,1765003844999,-16030.04,0.00010958,2]
[396494866,1765003845008,-500.0,0.00010958,2]
[396494867,1765003845018,-3076.35,0.00010958,2]
[396494868,1765003845027,-2724.3,0.00010958,2]
[396494869,1765003845037,-500.0,0.00010958,2]
[396494870,1765003845047,-776.45,0.00010958,2]
[396494871,1765003845056,-1788.4,0.00010958,2]
[396494872,1765003845065,-500.0,0.00010958,2]
[396494873,1765003845076,-937.71,0.00010958,2]
[396494874,1765003845087,-500.0,0.00010958,2]
[396494875,1765003845098,-500.0,0.00010958,2]
[396494876,1765003845109,-500.0,0.00010958,2]
[396494877,1765003845120,-500.0,0.00010958,2]
[396494878,1765003845131,-500.0,0.00010958,2]
[396494879,1765003845140,-5103.03,0.00010958,2]
[396494880,1765003845151,-500.0,0.00010958,2]
[396494881,1765003845163,-1100.04,0.00010958,2]
[396494882,1765003845173,-500.0,0.00010958,2]
[396494883,1765003845183,-500.0,0.00010958,2]
[396494884,1765003845192,-1158.3,0.00010958,2]
[396494885,1765003845202,-554.26,0.00010958,2]
[396494886,1765003845212,-500.0,0.00010958,2]
[396494887,1765003845222,-500.0,0.00010958,2]
[396494888,1765003845233,-2987.52,0.00010958,2]
[396494889,1765003845243,-731.72,0.00010958,2]
[396494890,1765003845253,-465.19732923,0.00010958,2]
[396494891,1765003845262,-4721.58,0.00010958,2]
[396494892,1765003845272,-500.0,0.00010958,2]
[396494893,1765003845281,-620.15,0.00010958,2]
[396494894,1765003845290,-500.0,0.00010958,2]
[396494895,1765003845299,-2211.36,0.00010958,2]
[396494896,1765003845309,-1014.07,0.00010958,2]
[396494897,1765003845319,-500.0,0.00010958,2]
[396494898,1765003845328,-500.0,0.00010958,2]
[396494899,1765003845337,-500.0,0.00010958,2]
[396494900,1765003845346,-1687.52,0.00010958,2]
[396494901,1765003845356,-500.0,0.00010958,2]
[396494902,1765003845366,-714.26,0.00010958,2]
[396494903,1765003845375,-739.93,0.00010958,2]
[396494904,1765003845384,-500.0,0.00010958,2]
[396494905,1765003845394,-500.0,0.00010958,2]
[396494906,1765003845403,-500.0,0.00010958,2]
[396494907,1765003845413,-1950.15,0.00010958,2]
[396494908,1765003845422,-500.0,0.00010958,2]
[396494909,1765003845432,-500.0,0.00010958,2]
[396494910,1765003845441,-993.71,0.00010958,2]
[396494911,1765003845451,-500.0,0.00010958,2]
[396494912,1765003845460,-500.0,0.00010958,2]
[396494913,1765003845469,-15808.07,0.00010958,2]
[396494914,1765003845479,-500.0,0.00010958,2]
[396494915,1765003845487,-2481.21,0.00010958,2]
[396494916,1765003845496,-1695.8,0.00010958,2]
[396494917,1765003845506,-626.11,0.00010958,2]
[396494918,1765003845515,-500.0,0.00010958,2]
[396494919,1765003845525,-2456.22,0.00010958,2]
[396494920,1765003845534,-500.0,0.00010958,2]
[396494921,1765003845543,-500.0,0.00010958,2]
[396494922,1765003845552,-6388.98,0.00010958,2]
[396494923,1765003845561,-500.0,0.00010958,2]
[396494924,1765003845570,-523.41,0.00010958,2]
[396494925,1765003845579,-1697.26,0.00010958,2]
[396494926,1765003845589,-500.0,0.00010958,2]
[396494927,1765003845599,-500.0,0.00010958,2]
[396494928,1765003845610,-500.0,0.00010958,2]
[396494929,1765003845621,-500.0,0.00010958,2]
[396494930,1765003845631,-907.66,0.00010958,2]
[396494931,1765003845640,-978.36,0.00010958,2]
[396494932,1765003845651,-1277.58,0.00010958,2]
[396494933,1765003845662,-500.0,0.00010958,2]
[396494934,1765003845672,-371.86503542,0.00010958,2]
[396494935,1765003845682,-500.0,0.00010958,2]
[396494936,1765003845691,-500.0,0.00010958,2]
[396494937,1765003845700,-500.0,0.00010958,2]
[396494938,1765003845710,-1576.26,0.00010958,2]
[396494939,1765003845720,-500.0,0.00010958,2]
[396494940,1765003845740,-500.0,0.00010958,2]
[396494941,1765003845754,-500.0,0.00010958,2]
[396494942,1765003845764,-500.0,0.00010958,2]
[396494943,1765003845773,-974.52,0.00010958,2]
[396494944,1765003845783,-2352.99,0.00010958,2]
[396494945,1765003845795,-500.0,0.00010958,2]
[396494946,1765003845814,-500.0,0.00010958,2]
[396494947,1765003845831,-6025.86,0.00010958,2]
[396494948,1765003845841,-515.07436958,0.00010958,2]
[396494949,1765003845850,-500.0,0.00010958,2]
[396494950,1765003845860,-500.0,0.00010958,2]
[396494951,1765003845869,-500.0,0.00010958,2]
[396494952,1765003845879,-500.0,0.00010958,2]
[396494953,1765003845888,-500.0,0.00010958,2]
[396494954,1765003845897,-3827.02,0.00010958,2]
[396494955,1765003845906,-500.0,0.00010958,2]
[396494956,1765003845915,-500.0,0.00010958,2]
[396494957,1765003845924,-500.0,0.00010958,2]
[396494958,1765003845934,-500.0,0.00010958,2]
[396494959,1765003845943,-1068.94,0.00010958,2]
[396494960,1765003845954,-500.0,0.00010958,2]
[396494961,1765003845963,-2389.36,0.00010958,2]
[396494962,1765003845973,-482.49125791,0.00010958,2]
[396494963,1765003845983,-500.0,0.00010958,2]
[396494964,1765003845993,-2267.0,0.00010958,2]
[396494965,1765003846001,-517.10828917,0.00010958,2]
[396494966,1765003846011,-500.0,0.00010958,2]
[396494967,1765003846021,-500.0,0.00010958,2]
[396494968,1765003846029,-500.0,0.00010958,2]
[396494969,1765003846039,-500.0,0.00010958,2]
[396494970,1765003846048,-500.0,0.00010958,2]
[396494971,1765003846059,-1546.21,0.00010958,2]
[396494972,1765003846071,-500.0,0.00010958,2]
[396494973,1765003846084,-500.0,0.00010958,2]
[396494974,1765003846094,-500.0,0.00010958,2]
[396494975,1765003846103,-500.0,0.00010958,2]
[396494976,1765003846112,-500.0,0.00010958,2]
[396494977,1765003846122,-1405.64,0.00010958,2]
[396494978,1765003846131,-500.0,0.00010958,2]
[396494979,1765003846139,-500.0,0.00010958,2]
[396494980,1765003846149,-807.04,0.00010958,2]
[396494981,1765003846162,-746.96,0.00010958,2]
[396494982,1765003846172,-523.7,0.00010958,2]
[396494983,1765003846181,-500.0,0.00010958,2]
[396494985,1765003846319,-500.0,0.00010958,2]
[396494986,1765003846329,-500.0,0.00010958,2]
[396494988,1765003846339,-500.0,0.00010958,2]
[396494989,1765003846348,-500.0,0.00010958,2]
[396494990,1765003846359,-4754.32,0.00010958,2]
[396494991,1765003846368,-9875.13,0.00010958,2]
[396494993,1765003846377,-1876.23,0.00010958,2]
[396494994,1765003846386,-647.67,0.00010958,2]
[396494995,1765003846395,-500.0,0.00010958,2]
[396494996,1765003846405,-500.0,0.00010958,2]
[396494997,1765003846416,-500.0,0.00010958,2]
[396494998,1765003846426,-4975.25,0.00010958,2]
[396494999,1765003846436,-500.0,0.00010958,2]
[396495001,1765003846445,-1879.02,0.00010958,2]
[396495002,1765003846456,-704.42,0.00010958,2]
[396495003,1765003846466,-500.0,0.00010958,2]
[396495004,1765003846475,-1546.59,0.00010958,2]
[396495005,1765003846485,-1028.25,0.00010958,2]
[396495006,1765003846494,-992.59,0.00010958,2]
[396495007,1765003846504,-1575.74,0.00010958,2]
[396495008,1765003846513,-32755.16,0.00010958,2]
[396495009,1765003846522,-500.0,0.00010958,2]
[396495010,1765003846531,-500.0,0.00010958,2]
[396495011,1765003846540,-500.0,0.00010958,2]
[396495012,1765003846549,-1996.23,0.00010958,2]
[396495013,1765003846559,-500.0,0.00010958,2]
[396495015,1765003846568,-815.76,0.00010958,2]
[396495016,1765003846577,-500.0,0.00010958,2]
[396495017,1765003846586,-500.0,0.00010958,2]
[396495018,1765003846595,-500.0,0.00010958,2]
[396495019,1765003846604,-500.0,0.00010958,2]
[396495020,1765003846613,-500.0,0.00010958,2]
[396495021,1765003846622,-500.0,0.00010958,2]
[396495022,1765003846631,-500.0,0.00010958,2]
[396495023,1765003846640,-500.0,0.00010958,2]
[396495024,1765003846650,-825.82,0.00010958,2]
[396495025,1765003846659,-1161.07,0.00010958,2]
[396495026,1765003846668,-1066.96,0.00010958,2]
[396495027,1765003846677,-500.0,0.00010958,2]
[396495028,1765003846686,-500.0,0.00010958,2]
[396495029,1765003846696,-5709.11,0.00010958,2]
[396495030,1765003846705,-500.0,0.00010958,2]
[396495031,1765003846714,-500.0,0.00010958,2]
[396495032,1765003846724,-500.0,0.00010958,2]
[396495033,1765003846734,-1491.2,0.00010958,2]
[396495034,1765003846743,-641.6,0.00010958,2]
[396495035,1765003846753,-500.0,0.00010958,2]
[396495036,1765003846762,-1878.25,0.00010958,2]
[396495037,1765003846772,-500.0,0.00010958,2]
[396495038,1765003846781,-500.0,0.00010958,2]
[396495039,1765003846791,-500.0,0.00010958,2]
[396495040,1765003846801,-500.0,0.00010958,2]
[396495041,1765003846810,-500.0,0.00010958,2]
[396495043,1765003846820,-703.67,0.00010958,2]
[396495044,1765003846829,-500.0,0.00010958,2]
[396495047,1765003846839,-513.48380651,0.00010958,2]
[396495048,1765003846848,-1627.88,0.00010958,2]
[396495050,1765003846858,-559.00392539,0.00010958,2]
[396495053,1765003846867,-500.0,0.00010958,2]
[396495054,1765003846877,-500.0,0.00010958,2]
[396495057,1765003846886,-840.71,0.00010958,2]
[396495059,1765003846895,-1694.04,0.00010958,2]
[396495061,1765003846905,-500.0,0.00010958,2]
[396495063,1765003846915,-500.0,0.00010958,2]
[396495065,1765003846924,-545.35,0.00010958,2]
[396495067,1765003846934,-500.0,0.00010958,2]
[396495068,1765003846943,-500.0,0.00010958,2]
[396495071,1765003846953,-500.0,0.00010958,2]
[396495072,1765003846961,-500.0,0.00010958,2]
[396495074,1765003846971,-500.0,0.00010958,2]
[396495075,1765003846981,-500.0,0.00010958,2]
[396495076,1765003846990,-500.0,0.00010958,2]
[396495077,1765003846999,-500.0,0.00010958,2]
[396495078,1765003847008,-7139.0,0.00010958,2]
[396495079,1765003847018,-500.0,0.00010958,2]
[396495080,1765003847028,-588.8,0.00010958,2]
[396495081,1765003847037,-500.0,0.00010958,2]
[396495082,1765003847046,-500.0,0.00010958,2]
[396495083,1765003847056,-10715.49,0.00010958,2]
[396495084,1765003847066,-473.5728504,0.00010958,2]
[396495085,1765003847075,-500.0,0.00010958,2]
[396495086,1765003847085,-500.0,0.00010958,2]
[396495087,1765003847094,-500.0,0.00010958,2]
[396495088,1765003847103,-500.0,0.00010958,2]
[396495089,1765003847112,-633.57,0.00010958,2]
[396495090,1765003847123,-745.59,0.00010958,2]
[396495091,1765003847132,-500.0,0.00010958,2]
[396495092,1765003847142,-1967.43,0.00010958,2]
[396495093,1765003847151,-832.66,0.00010958,2]
[396495094,1765003847165,-12139.51,0.00010958,2]
[396495095,1765003847175,-500.0,0.00010958,2]
[396495096,1765003847185,-500.0,0.00010958,2]
[396495097,1765003847196,-500.0,0.00010958,2]
[396495098,1765003847206,-500.0,0.00010958,2]
[396495099,1765003847216,-4138.51,0.00010958,2]
[396495100,1765003847226,-3150.0,0.00010958,2]
[396495101,1765003847239,-500.0,0.00010958,2]
[396495102,1765003847248,-500.0,0.00010958,2]
[396495103,1765003847257,-752.03,0.00010958,2]
[396495104,1765003847266,-500.0,0.00010958,2]
[396495105,1765003847275,-780.72,0.00010958,2]
[396495106,1765003847284,-764.39,0.00010958,2]
[396495107,1765003847293,-500.0,0.00010958,2]
[396495108,1765003847303,-526.52,0.00010958,2]
[396495109,1765003847313,-500.0,0.00010958,2]
[396495110,1765003847322,-500.0,0.00010958,2]
[396495111,1765003847331,-521.8,0.00010958,2]
[396495112,1765003847341,-322.72267227,0.00010958,2]
[396495113,1765003847351,-500.0,0.00010958,2]
[396495114,1765003847362,-500.0,0.00010958,2]
[396495115,1765003847373,-500.0,0.00010958,2]
[396495116,1765003847382,-500.0,0.00010958,2]
[396495117,1765003847391,-1825.05,0.00010958,2]
[396495118,1765003847400,-500.0,0.00010958,2]
[396495119,1765003847412,-500.0,0.00010958,2]
[396495120,1765003847422,-500.0,0.00010958,2]
[396495121,1765003847431,-500.0,0.00010958,2]
[396495122,1765003847441,-588.37,0.00010958,2]
[396495123,1765003847451,-2283.16,0.00010958,2]
[396495124,1765003847460,-2472.79,0.00010958,2]
[396495125,1765003847471,-631.28,0.00010958,2]
[396495126,1765003847482,-1452.35,0.00010958,2]
[396495127,1765003847492,-500.0,0.00010958,2]
[396495128,1765003847503,-798.18,0.00010958,2]
[396495129,1765003847512,-1063.07,0.00010958,2]
[396495130,1765003847523,-323.68,0.00010958,2]
[396495131,1765003847533,-500.0,0.00010958,2]
[396495132,1765003847542,-6269.82,0.00010958,2]
[396495133,1765003847554,-500.0,0.00010958,2]
[396495134,1765003847563,-500.0,0.00010958,2]
[396495135,1765003847573,-21990.06,0.00010958,2]
[396495136,1765003847582,-500.0,0.00010958,2]
[396495137,1765003847591,-500.0,0.00010958,2]
[396495138,1765003847599,-705.15,0.00010958,2]
[396495139,1765003847609,-1121.12,0.00010958,2]
[396495140,1765003847617,-1411.34,0.00010958,2]
[396495141,1765003847627,-500.0,0.00010958,2]
[396495142,1765003847636,-2297.15,0.00010958,2]
[396495143,1765003847645,-644.08,0.00010958,2]
[396495144,1765003847654,-500.0,0.00010958,2]
[396495145,1765003847663,-500.0,0.00010958,2]
[396495146,1765003847672,-500.0,0.00010958,2]
[396495147,1765003847681,-500.0,0.00010958,2]
[396495148,1765003847691,-500.0,0.00010958,2]
[396495149,1765003847700,-5429.64,0.00010958,2]
[396495150,1765003847709,-500.0,0.00010958,2]
[396495151,1765003847718,-1497.61,0.00010958,2]
[396495152,1765003847727,-6975.37,0.00010958,2]
[396495153,1765003847737,-500.0,0.00010958,2]
[396495154,1765003847747,-500.0,0.00010958,2]
[396495155,1765003847757,-2513.96,0.00010958,2]
[396495156,1765003847767,-500.0,0.00010958,2]
[396495157,1765003847776,-500.0,0.00010958,2]
[396495158,1765003847786,-500.0,0.00010958,2]
[396495159,1765003847796,-500.0,0.00010958,2]
[396495160,1765003847806,-742.65,0.00010958,2]
[396495161,1765003847815,-1190.02,0.00010958,2]
[396495162,1765003847824,-500.0,0.00010958,2]
[396495163,1765003847833,-1322.0,0.00010958,2]
[396495164,1765003847842,-3001.01,0.00010958,2]
[396495165,1765003847852,-500.0,0.00010958,2]
[396495166,1765003847863,-500.0,0.00010958,2]
[396495167,1765003847872,-2066.4626295,0.00010959,2]
[396495168,1765003847882,-500.0,0.00010959,2]
[396495169,1765003847891,-230.55926478,0.00010959,2]
[396495170,1765003847901,-151.90735643,0.00010988,2]
[396495171,1765003847910,-291.54383558,0.00010988,2]
[396495172,1765003847920,-151.0,0.00011,2]
[396495173,1765003847930,-151.0,0.00011,2]
[396495174,1765003847939,-151.0,0.00011,2]
[396495175,1765003847949,-300.0,0.00011068,2]
[396495176,1765003847959,-300.0,0.00011068,2]
[396495177,1765003847969,-300.0,0.00011068,2]
[396495178,1765003847979,-300.0,0.00011068,2]
[396495179,1765003847990,-300.0,0.00011068,2]
[396495180,1765003848000,-300.0,0.00011068,2]
[396495181,1765003848009,-300.0,0.00011068,2]
[396495182,1765003848018,-300.0,0.00011068,2]
[396495183,1765003848028,-300.0,0.00011068,2]
[396495184,1765003848037,-300.0,0.00011068,2]
[396495185,1765003848046,-300.0,0.00011068,2]
[396495186,1765003848055,-300.0,0.00011068,2]
[396495187,1765003848065,-300.0,0.00011068,2]
[396495188,1765003848074,-300.0,0.00011068,2]
[396495189,1765003848083,-300.0,0.00011068,2]
[396495190,1765003848092,-600.0,0.00011068,2]
[396495191,1765003848102,-160.06284998,0.00011093,2]
[396495192,1765003848111,-203.78366785,0.00011093,2]
[396495193,1765003848120,-1322.0,0.00011095,2]